bitfinex-derivatives/quotes_BTCF0:USTF0_20250130
["timestamp","ask_amount","ask_price","bid_price","bid_amount"]
[1738259024844,0.87613252,105180.0,105170.0,0.01263816]
[1738259025548,0.82613252,105180.0,105170.0,0.01263816]
[1738259025751,0.82713252,105180.0,105170.0,0.01263816]
[1738259026136,0.72277576,105180.0,105170.0,0.01263816]
[1738259026646,0.72477576,105180.0,105170.0,0.01263816]
[1738259026843,0.72677576,105180.0,105170.0,0.01363816]
[1738259027649,1.03428585,105180.0,105170.0,0.001]
[1738259029551,1.13864261,105180.0,105170.0,0.001]
[1738259029950,0.190177,105170.0,105160.0,0.00014258]
[1738259030151,0.65533376,105170.0,105160.0,0.00014258]
[1738259030552,0.70073376,105170.0,105160.0,0.00014258]
[1738259031442,0.70173376,105170.0,105160.0,0.00014258]
[1738259031740,0.72949376,105170.0,105160.0,0.00014258]
[1738259032142,0.73349376,105170.0,105160.0,0.00014258]
[1738259034354,0.70573376,105170.0,105160.0,0.00014258]
[1738259034654,0.73349376,105170.0,105160.0,0.00014258]
[1738259035342,0.70573376,105170.0,105160.0,0.00014258]
[1738259035542,0.73349376,105170.0,105160.0,5.8e-07]
[1738259035744,1.03349376,105170.0,105160.0,5.8e-07]
[1738259035943,1.03349376,105170.0,105120.0,0.41620678]
[1738259035944,0.190249,105130.0,105120.0,0.323964]
[1738259036141,1.01620576,105130.0,105120.0,0.323964]
[1738259036349,1.01620576,105130.0,105120.0,0.0912]
[1738259036655,0.190268,105120.0,105110.0,0.19844863]
[1738259036858,0.551068,105120.0,105110.0,0.19844863]
[1738259037658,0.65542476,105120.0,105110.0,0.19844863]
[1738259038357,0.65542476,105120.0,105110.0,0.19944863]
[1738259038853,0.65542476,105120.0,105110.0,0.20144863]
[1738259039052,0.68318476,105120.0,105110.0,0.20144863]
[1738259039453,0.68318476,105120.0,105110.0,0.193279]
[1738259040052,0.68318476,105120.0,105110.0,0.003]
[1738259040448,0.551068,105120.0,105110.0,0.193286]
[1738259040748,0.578828,105120.0,105110.0,0.193286]
[1738259041452,0.68318476,105120.0,105110.0,0.003]
[1738259042553,0.68318476,105120.0,105110.0,0.0032]
[1738259042952,0.78754152,105120.0,105110.0,0.0032]
[1738259043657,0.68318476,105120.0,105110.0,0.0032]
[1738259052062,0.68318476,105120.0,105110.0,0.193486]
[1738259053264,0.68318476,105120.0,105110.0,0.0032]
[1738259056468,0.79526236,105120.0,105110.0,0.0032]
[1738259057668,0.79526236,105120.0,105110.0,0.193486]
[1738259057966,0.76750236,105120.0,105110.0,0.193486]
[1738259058164,0.79526236,105120.0,105110.0,0.193486]
[1738259059263,0.79526236,105120.0,105110.0,0.0032]
[1738259059960,1.04005518,105120.0,105110.0,0.0032]
[1738259060563,1.08535518,105120.0,105110.0,0.0032]
[1738259060969,1.08535518,105120.0,105110.0,1e-06]
[1738259061165,0.190286,105110.0,105100.0,0.10014258]
[1738259061365,0.74684276,105110.0,105100.0,0.10014258]
[1738259062565,0.74884276,105110.0,105100.0,0.10014258]
[1738259063467,0.75784276,105110.0,105100.0,0.10114258]
[1738259063972,0.75784276,105110.0,105100.0,0.10014258]
[1738259064268,0.75984276,105110.0,105100.0,0.10114258]
[1738259065562,0.92691679,105110.0,105100.0,0.10114258]
[1738259066972,0.92691679,105110.0,105100.0,0.00404698]
[1738259067571,0.93541202,105110.0,105100.0,0.00404698]
[1738259069177,0.76833799,105110.0,105100.0,0.00404698]
[1738259070665,0.87269475,105110.0,105100.0,0.00404698]
[1738259070875,0.19034,105080.0,105070.0,0.33864943]
[1738259071072,0.65549676,105080.0,105070.0,0.34864943]
[1738259072163,0.65649676,105080.0,105070.0,0.34864943]
[1738259072969,0.65649676,105080.0,105070.0,0.340446]
[1738259073566,0.65649676,105080.0,105070.0,0.1401]
[1738259074277,0.68425676,105080.0,105070.0,0.1401]
[1738259075070,0.65649676,105080.0,105070.0,0.330458]
[1738259075276,0.68425676,105080.0,105070.0,0.330458]
[1738259075966,0.68425676,105080.0,105070.0,0.1401]
[1738259076475,0.78861352,105080.0,105070.0,0.1401]
[1738259076671,0.78861352,105080.0,105060.0,0.20050858]
[1738259076672,0.190358,105070.0,105060.0,0.20050858]
[1738259076864,0.65551476,105070.0,105060.0,0.20050858]
[1738259077972,0.65551476,105070.0,105060.0,0.20250858]
[1738259078573,0.65551476,105070.0,105060.0,0.20350858]
[1738259078972,0.65551476,105070.0,105060.0,0.01314258]
[1738259079372,0.65551476,105070.0,105060.0,0.20351858]
[1738259081081,0.551158,105070.0,105060.0,0.30787534]
[1738259081482,0.551158,105070.0,105060.0,0.20351858]
[1738259083074,0.11229219,105080.0,105070.0,0.190358]
[1738259083280,0.11229219,105080.0,105070.0,0.33931476]
[1738259083778,0.66343219,105080.0,105070.0,0.33931476]
[1738259084086,0.76778895,105080.0,105070.0,0.234958]
[1738259084581,0.76878895,105080.0,105070.0,0.234958]
[1738259084773,0.65649676,105080.0,105070.0,0.234958]
[1738259084973,0.63631677,105080.0,105070.0,0.234958]
[1738259086587,0.63631677,105080.0,105070.0,0.34931476]
[1738259088485,0.63631677,105080.0,105070.0,0.35762538]
[1738259089273,0.55214,105080.0,105070.0,0.35762538]
[1738259089983,0.55214,105080.0,105070.0,0.40562538]
[1738259090685,0.55214,105080.0,105070.0,0.30126862]
[1738259091691,0.55214,105080.0,105070.0,0.292958]
[1738259091881,0.65649676,105080.0,105070.0,0.292958]
[1738259092374,0.68425676,105080.0,105070.0,0.292958]
[1738259092776,0.68425676,105080.0,105070.0,0.244958]
[1738259092976,0.79654895,105080.0,105070.0,0.200358]
[1738259093881,0.84354895,105080.0,105070.0,0.01]
[1738259094081,0.190358,105070.0,105060.0,0.20051358]
[1738259094387,0.551158,105070.0,105060.0,0.21051358]
[1738259095184,0.551158,105070.0,105060.0,0.21151358]
[1738259096490,0.551158,105070.0,105060.0,0.31587034]
[1738259096685,0.551158,105070.0,105060.0,0.31787034]
[1738259097489,0.69151624,105080.0,105070.0,0.190358]
[1738259097875,0.69151624,105080.0,105070.0,0.29471476]
[1738259098283,0.69151624,105080.0,105070.0,0.44291476]
[1738259099784,0.69151624,105080.0,105070.0,0.338558]
[1738259099989,0.69151624,105080.0,105070.0,0.348558]
[1738259100293,0.69251624,105080.0,105070.0,0.348558]
[1738259100477,0.796873,105080.0,105070.0,0.348558]
[1738259100682,0.7409292,105080.0,105070.0,0.348558]
[1738259101291,0.63657244,105080.0,105070.0,0.348558]
[1738259102278,0.63657244,105080.0,105070.0,0.35699224]
[1738259102793,0.08542144,105080.0,105070.0,0.35699224]
[1738259102987,0.08542144,105080.0,105070.0,0.71779224]
[1738259103190,0.25306974,105090.0,105080.0,0.19034]
[1738259103383,0.25306974,105090.0,105080.0,0.33245676]
[1738259103692,0.25306974,105090.0,105080.0,0.20034]
[1738259103693,0.9085485,105090.0,105080.0,0.20034]
[1738259103902,0.80419174,105090.0,105080.0,0.20034]
[1738259104085,0.61386974,105090.0,105080.0,0.30469676]
[1738259104280,0.61386974,105090.0,105080.0,0.20034]
[1738259104484,0.61886974,105090.0,105080.0,0.20034]
[1738259104693,0.25806974,105090.0,105080.0,0.30469676]
[1738259104983,0.25406974,105090.0,105080.0,0.30669676]
[1738259105183,0.1137045,105090.0,105080.0,0.30669676]
[1738259105379,0.1137045,105090.0,105080.0,0.33453676]
[1738259106795,0.1127045,105090.0,105080.0,0.33553676]
[1738259107494,0.1127045,105090.0,105080.0,0.69633676]
[1738259108896,0.00014258,105090.0,105080.0,0.69633676]
[1738259109694,0.00142805,105100.0,105090.0,0.190322]
[1738259109894,0.25292716,105110.0,105100.0,0.190304]
[1738259110095,0.25292716,105110.0,105100.0,0.33246076]
[1738259110494,0.44321216,105110.0,105100.0,0.228104]
[1738259110696,0.44321216,105110.0,105100.0,0.33246076]
[1738259111203,0.44721216,105110.0,105100.0,0.33246076]
[1738259111402,0.25692716,105110.0,105100.0,0.33246076]
[1738259111904,0.80901216,105110.0,105100.0,0.228104]
[1738259112102,0.91336892,105110.0,105100.0,0.200304]
[1738259112400,1.05836892,105110.0,105100.0,0.200304]
[1738259112705,0.95401216,105110.0,105100.0,0.200304]
[1738259113199,0.95101216,105110.0,105100.0,0.200304]
[1738259113401,0.95001216,105110.0,105100.0,0.200304]
[1738259113587,0.697085,105110.0,105100.0,0.200304]
[1738259115207,0.697085,105110.0,105100.0,0.30466076]
[1738259115398,0.552085,105110.0,105100.0,0.30466076]
[1738259118599,0.3618,105110.0,105100.0,0.30466076]
[1738259118801,0.552085,105110.0,105100.0,0.30466076]
[1738259119598,0.599585,105110.0,105100.0,0.30466076]
[1738259119793,0.54137676,105110.0,105090.0,0.19046258]
[1738259119998,0.650104,105100.0,105090.0,0.29481934]
[1738259120899,0.650104,105100.0,105090.0,0.29581934]
[1738259121099,0.289304,105100.0,105090.0,0.29581934]
[1738259121304,0.598588,105110.0,105100.0,0.190304]
[1738259121500,0.65021758,105120.0,105110.0,0.190285]
[1738259121695,0.65021758,105120.0,105110.0,0.29464176]
[1738259121897,0.7627795,105120.0,105110.0,0.29464176]
[1738259122905,0.7667795,105120.0,105110.0,0.29464176]
[1738259123606,0.7677795,105120.0,105110.0,0.29464176]
[1738259124106,0.4069795,105120.0,105110.0,0.29464176]
[1738259124306,0.1177045,105120.0,105110.0,0.39899852]
[1738259124507,0.1177045,105120.0,105110.0,0.50459852]
[1738259124804,0.1177045,105120.0,105110.0,0.40024176]
[1738259125304,0.00514258,105120.0,105110.0,0.40024176]
[1738259126109,0.19540958,105120.0,105110.0,0.40024176]
[1738259126303,0.00514258,105120.0,105110.0,0.40024176]
[1738259126501,0.55620958,105120.0,105110.0,0.30464176]
[1738259126908,0.65200958,105120.0,105110.0,0.30464176]
[1738259127610,0.65200958,105120.0,105110.0,0.31325314]
[1738259128915,0.46174258,105120.0,105110.0,0.31325314]
[1738259129113,0.36594258,105120.0,105110.0,0.31325314]
[1738259129312,0.00514258,105120.0,105110.0,0.31325314]
[1738259130802,0.36594258,105120.0,105110.0,0.31325314]
[1738259131109,0.00514258,105120.0,105110.0,0.4176099]
[1738259131410,0.11256192,105130.0,105110.0,0.7269249]
[1738259131605,0.11256192,105130.0,105120.0,0.78750052]
[1738259131805,0.11256192,105130.0,105120.0,0.79750052]
[1738259132908,0.11956192,105130.0,105120.0,0.79850052]
[1738259133118,0.14050782,105140.0,105130.0,0.190249]
[1738259133317,0.14050782,105140.0,105130.0,0.90856252]
[1738259133520,0.16843829,105150.0,105140.0,0.190231]
[1738259133708,0.16843829,105150.0,105140.0,0.79746452]
[1738259134712,0.16843829,105150.0,105140.0,0.76974452]
[1738259134906,0.16843829,105150.0,105140.0,0.79746452]
[1738259135109,0.11252572,105150.0,105140.0,0.79746452]
[1738259137014,0.11252572,105150.0,105140.0,0.8061769]
[1738259137411,0.11252572,105150.0,105140.0,0.31330014]
[1738259137611,0.11252572,105150.0,105140.0,0.34102014]
[1738259138612,0.55113758,105160.0,105140.0,0.15078914]
[1738259138818,0.55113758,105160.0,105150.0,0.29456976]
[1738259141429,0.190213,105150.0,105140.0,0.19893638]
[1738259141725,0.648013,105150.0,105140.0,0.19893638]
[1738259141924,0.648013,105150.0,105140.0,0.30329314]
[1738259144219,0.551013,105150.0,105140.0,0.30329314]
[1738259144622,0.190213,105150.0,105140.0,0.30329314]
[1738259144923,0.36094258,105160.0,105150.0,0.190213]
[1738259145126,0.36094258,105160.0,105150.0,0.39892652]
[1738259145424,0.00014258,105160.0,105150.0,0.39892652]
[1738259145624,0.36094258,105160.0,105150.0,0.44482652]
[1738259145935,0.00142681,105170.0,105160.0,0.190195]
[1738259146123,0.754726,105190.0,105160.0,0.190195]
[1738259146124,0.896926,105190.0,105180.0,0.190159]
[1738259147427,0.896926,105190.0,105180.0,0.191159]
[1738259147819,0.901926,105190.0,105180.0,0.191159]
[1738259149630,0.901926,105190.0,105180.0,0.29551576]
[1738259150226,0.73348771,105190.0,105180.0,0.191159]
[1738259150629,0.83784447,105190.0,105180.0,0.191159]
[1738259151727,0.80250576,105190.0,105180.0,0.001]
[1738259151930,0.80250576,105190.0,105170.0,0.19031158]
[1738259151931,0.190159,105180.0,105170.0,0.00014258]
[1738259152125,0.75967252,105180.0,105170.0,0.00014258]
[1738259152828,0.65531576,105180.0,105170.0,0.00014258]
[1738259153225,0.65831576,105180.0,105170.0,0.00014258]
[1738259153429,0.65831576,105180.0,105170.0,0.00114258]
[1738259156729,0.68603576,105180.0,105170.0,0.00114258]
[1738259158531,0.68603576,105180.0,105170.0,8.603e-05]
[1738259161632,0.190177,105170.0,105160.0,0.18936955]
[1738259161834,0.3608,105170.0,105160.0,0.29372631]
[1738259162030,0.581688,105180.0,105170.0,0.190177]
[1738259162233,0.003,105180.0,105170.0,0.29453376]
[1738259162735,0.64329258,105190.0,105170.0,0.21375676]
[1738259162931,0.64329258,105190.0,105180.0,0.29451576]
[1738259163231,0.64329258,105190.0,105180.0,0.190159]
[1738259163943,0.74764934,105190.0,105180.0,0.190159]
[1738259164333,0.190159,105180.0,105170.0,0.191171]
[1738259164537,0.65531576,105180.0,105170.0,0.191171]
[1738259165220,0.65531576,105180.0,105170.0,0.190171]
[1738259166033,0.65631576,105180.0,105170.0,0.191171]
[1738259166328,0.65931576,105180.0,105170.0,0.191171]
[1738259166534,0.79139252,105180.0,105170.0,0.001]
[1738259166725,0.68703576,105180.0,105170.0,0.001]
[1738259167135,0.79139252,105180.0,105170.0,0.001]
[1738259167427,0.68703576,105180.0,105170.0,0.001]
[1738259168323,0.49387676,105180.0,105160.0,0.36044303]
[1738259168523,0.65533376,105170.0,105160.0,0.36044303]
[1738259168727,0.550977,105170.0,105160.0,0.36044303]
[1738259170131,0.551977,105170.0,105160.0,0.36044303]
[1738259170830,0.65633376,105170.0,105160.0,0.36044303]
[1738259171037,0.65633376,105170.0,105160.0,0.19032558]
[1738259171441,0.65733376,105170.0,105160.0,0.19032558]
[1738259171834,0.75373376,105170.0,105160.0,0.19032558]
[1738259172338,0.75373376,105170.0,105160.0,0.00014258]
[1738259172539,0.80253376,105170.0,105160.0,0.19033758]
[1738259172937,0.80253376,105170.0,105160.0,0.00014258]
[1738259175236,0.190213,105150.0,105140.0,0.73319478]
[1738259175540,1.12052652,105150.0,105140.0,0.39916878]
[1738259175730,1.06116976,105150.0,105140.0,0.39916878]
[1738259176333,1.06116976,105150.0,105140.0,0.58797319]
[1738259176633,1.06116976,105150.0,105140.0,0.59097319]
[1738259178138,1.06216976,105150.0,105140.0,0.58897319]
[1738259178737,1.06216976,105150.0,105140.0,0.58797319]
[1738259179743,1.06216976,105150.0,105140.0,0.190231]
[1738259179942,0.190231,105140.0,105130.0,0.19038258]
[1738259180143,0.551031,105140.0,105130.0,0.19038258]
[1738259180643,0.65538776,105140.0,105130.0,0.19038258]
[1738259181241,0.65538776,105140.0,105130.0,0.19238258]
[1738259181845,0.65538776,105140.0,105130.0,0.19338258]
[1738259184736,0.551031,105140.0,105130.0,0.19338258]
[1738259188744,0.551031,105140.0,105130.0,0.29773934]
[1738259188952,0.3608,105150.0,105130.0,0.10749934]
[1738259189151,0.71986969,105160.0,105150.0,0.190213]
[1738259189352,0.69214969,105160.0,105150.0,0.29456976]
[1738259189547,0.79650645,105160.0,105150.0,0.190213]
[1738259190553,0.65549934,105160.0,105150.0,0.190213]
[1738259191547,0.65649934,105160.0,105150.0,0.190213]
[1738259193145,0.65749934,105160.0,105150.0,0.190213]
[1738259193646,0.55314258,105160.0,105150.0,0.190213]
[1738259196557,0.55314258,105160.0,105150.0,0.19913443]
[1738259197559,0.65749934,105160.0,105150.0,0.19913443]
[1738259198956,0.65749934,105160.0,105150.0,0.190213]
[1738259199654,0.190213,105150.0,105140.0,0.17011745]
[1738259199848,0.190231,105140.0,105130.0,0.5102741]
[1738259200048,0.65538776,105140.0,105130.0,0.5102741]
[1738259201148,0.65538776,105140.0,105130.0,0.5122741]
[1738259201346,0.68310776,105140.0,105130.0,0.7025231]
[1738259201755,0.68310776,105140.0,105130.0,0.5132741]
[1738259202046,0.68310776,105140.0,105130.0,0.7035231]
[1738259202446,0.68310776,105140.0,105130.0,0.5132741]
[1738259203158,0.68310776,105140.0,105130.0,0.7035231]
[1738259204048,0.68310776,105140.0,105130.0,0.19339158]
[1738259204049,0.93690481,105140.0,105130.0,0.19339158]
[1738259205361,0.90918481,105140.0,105130.0,0.19339158]
[1738259205556,0.93690481,105140.0,105130.0,0.19339158]
[1738259207354,0.90918481,105140.0,105130.0,0.00314258]
[1738259207550,0.7681777,105140.0,105130.0,0.00314258]
[1738259208661,0.7681777,105140.0,105130.0,0.19339158]
[1738259211368,0.7681777,105140.0,105130.0,0.00314258]
[1738259212565,0.65538776,105140.0,105130.0,0.00314258]
[1738259215472,0.65538776,105140.0,105130.0,0.29774834]
[1738259215473,0.551031,105140.0,105130.0,0.29774834]
[1738259215774,0.3608,105140.0,105130.0,0.34784834]
[1738259215967,0.3608,105140.0,105130.0,0.39704834]
[1738259217969,0.551031,105140.0,105130.0,0.29269158]
[1738259218372,0.65538776,105140.0,105130.0,0.19339158]
[1738259220860,0.68310776,105140.0,105130.0,0.00314258]
[1738259221469,0.93690481,105140.0,105130.0,0.00314258]
[1738259224378,0.94613452,105140.0,105130.0,0.00314258]
[1738259224965,0.86154601,105140.0,105130.0,0.00314258]
[1738259228782,0.69233747,105140.0,105130.0,0.00314258]
[1738259229480,0.79669423,105140.0,105130.0,0.00314258]
[1738259229783,0.190285,105110.0,105100.0,0.51724965]
[1738259229982,0.551085,105110.0,105100.0,0.51724965]
[1738259230979,0.551085,105110.0,105100.0,0.52124965]
[1738259231585,0.551085,105110.0,105100.0,0.53024965]
[1738259232478,0.63590749,105110.0,105100.0,0.53024965]
[1738259232682,0.63590749,105110.0,105100.0,0.63460641]
[1738259232878,0.08482249,105110.0,105100.0,0.63460641]
[1738259233275,0.08482249,105110.0,105100.0,0.64374475]
[1738259233982,0.27510749,105110.0,105100.0,0.64374475]
[1738259235970,0.38833072,105120.0,105110.0,0.190285]
[1738259236171,0.55886172,105120.0,105110.0,0.34484176]
[1738259236379,0.55886172,105120.0,105110.0,0.35484176]
[1738259236585,0.19806172,105120.0,105110.0,0.35484176]
[1738259236882,0.19806172,105120.0,105110.0,0.38252176]
[1738259237185,0.14137081,105130.0,105120.0,0.190267]
[1738259237386,0.14137081,105130.0,105120.0,0.39502376]
[1738259239086,0.14137081,105130.0,105120.0,0.39702376]
[1738259239278,0.50217081,105130.0,105120.0,0.39702376]
[1738259239473,0.50217081,105130.0,105120.0,0.292667]
[1738259239679,0.79677657,105130.0,105120.0,0.297667]
[1738259240179,0.79677657,105130.0,105120.0,0.197267]
[1738259240488,0.75140576,105130.0,105120.0,0.42489174]
[1738259240681,0.80060576,105130.0,105120.0,0.42489174]
[1738259240885,0.82828576,105130.0,105120.0,0.42489174]
[1738259246090,0.82828576,105130.0,105120.0,0.197267]
[1738259249785,0.65540576,105130.0,105120.0,0.197267]
[1738259249985,0.79677657,105130.0,105120.0,0.197267]
[1738259254593,0.82445657,105130.0,105120.0,0.197267]
[1738259257993,0.72009981,105130.0,105120.0,0.197267]
[1738259258399,0.69241981,105130.0,105120.0,0.197267]
[1738259258699,0.551049,105130.0,105120.0,0.197267]
[1738259259697,0.65540576,105130.0,105120.0,0.197267]
[1738259261999,0.551049,105130.0,105120.0,0.197267]
[1738259262886,0.551049,105130.0,105120.0,0.30162376]
[1738259263289,0.3608,105130.0,105120.0,0.30162376]
[1738259263487,0.3608,105130.0,105120.0,0.39782376]
[1738259264293,0.14294082,105140.0,105130.0,0.190248]
[1738259264593,0.16920854,105150.0,105140.0,0.19023]
[1738259264798,0.16920854,105150.0,105140.0,0.68306676]
[1738259265301,0.16920854,105150.0,105140.0,0.73046676]
[1738259265501,0.16920854,105150.0,105140.0,0.36966676]
[1738259265899,0.53000854,105150.0,105140.0,0.36966676]
[1738259266095,0.16920854,105150.0,105140.0,0.36966676]
[1738259266295,0.17020854,105150.0,105140.0,0.36966676]
[1738259266701,0.17020854,105150.0,105140.0,0.34198676]
[1738259266908,0.17020854,105150.0,105140.0,0.36966676]
[1738259268095,0.53100854,105150.0,105140.0,0.36966676]
[1738259268296,0.17020854,105150.0,105140.0,0.36966676]
[1738259268506,0.17020854,105150.0,105140.0,0.34198676]
[1738259268699,0.53100854,105150.0,105140.0,0.34198676]
[1738259268902,0.53100854,105150.0,105140.0,0.5696115]
[1738259268903,0.001,105150.0,105140.0,0.5696115]
[1738259271007,0.001,105150.0,105140.0,0.5786579]
[1738259271306,0.001,105150.0,105140.0,0.47430114]
[1738259271508,0.3618,105150.0,105140.0,0.47430114]
[1738259271706,0.001,105150.0,105140.0,0.47430114]
[1738259271907,0.001,105150.0,105140.0,0.5786579]
[1738259272109,0.3618,105150.0,105140.0,0.5786579]
[1738259272313,0.001,105150.0,105140.0,0.5786579]
[1738259273014,0.3618,105150.0,105140.0,0.35103316]
[1738259273401,0.001,105150.0,105140.0,0.35103316]
[1738259275212,0.001,105150.0,105140.0,0.40293316]
[1738259278212,0.001,105150.0,105140.0,0.41293316]
[1738259278808,0.001,105150.0,105140.0,0.77373316]
[1738259279026,0.3608,105180.0,105150.0,0.20871352]
[1738259279209,0.3608,105180.0,105170.0,0.29453276]
[1738259279515,0.3608,105180.0,105170.0,0.32221276]
[1738259279913,0.3608,105180.0,105170.0,0.217856]
[1738259280615,0.3638,105180.0,105170.0,0.218856]
[1738259281520,0.3678,105180.0,105170.0,0.218856]
[1738259281712,0.3678,105180.0,105170.0,0.32321276]
[1738259282112,0.3668,105180.0,105170.0,0.32221276]
[1738259282410,0.3648,105180.0,105170.0,0.32221276]
[1738259283006,0.004,105180.0,105170.0,0.32221276]
[1738259283221,0.004,105180.0,105170.0,0.78736952]
[1738259283517,0.004,105180.0,105170.0,0.69301276]
[1738259284611,0.004,105180.0,105170.0,0.70239546]
[1738259284817,0.002,105180.0,105170.0,0.70239546]
[1738259285218,0.001,105180.0,105170.0,0.70239546]
[1738259285418,0.001,105180.0,105170.0,0.74993846]
[1738259286419,0.001,105180.0,105170.0,0.85429522]
[1738259286925,0.001,105180.0,105170.0,0.74993846]
[1738259287222,0.26920854,105200.0,105180.0,0.20871352]
[1738259287423,0.1,105200.0,105190.0,0.83163676]
[1738259288311,0.103,105200.0,105190.0,0.83163676]
[1738259288815,0.101,105200.0,105190.0,0.83163676]
[1738259289024,0.103,105200.0,105190.0,0.83163676]
[1738259291922,0.103,105200.0,105190.0,0.19014]
[1738259292223,0.5634,105200.0,105190.0,0.19014]
[1738259292409,0.5634,105200.0,105190.0,0.21778]
[1738259292612,0.85787876,105200.0,105190.0,0.19014]
[1738259293124,0.88551876,105200.0,105190.0,0.19014]
[1738259293618,0.85787876,105200.0,105190.0,0.19014]
[1738259295230,0.753522,105200.0,105190.0,0.19014]
[1738259295531,0.753522,105200.0,105190.0,0.29449676]
[1738259295713,0.753522,105200.0,105180.0,0.00927823]
[1738259295714,0.69539676,105200.0,105180.0,0.00927823]
[1738259295912,0.65529676,105190.0,105180.0,0.00014258]
[1738259296523,0.68293676,105190.0,105180.0,0.19030058]
[1738259296720,0.57858,105190.0,105180.0,0.19030058]
[1738259296921,0.55094,105190.0,105180.0,0.19030058]
[1738259297122,0.57858,105190.0,105180.0,0.19030058]
[1738259298132,0.57958,105190.0,105180.0,0.19030058]
[1738259298326,0.63148,105190.0,105180.0,0.19030058]
[1738259298826,0.60384,105190.0,105180.0,0.29465734]
[1738259299932,0.60384,105190.0,105180.0,0.19030058]
[1738259301128,0.60384,105190.0,105180.0,0.00014258]
[1738259301129,0.70819676,105190.0,105180.0,0.00014258]
[1738259302922,0.73583676,105190.0,105180.0,0.19030058]
[1738259307035,0.73583676,105190.0,105180.0,0.00014258]
[1738259307233,0.84019352,105190.0,105180.0,0.00014258]
[1738259307539,0.190191,105170.0,105160.0,0.19019]
[1738259307734,1.04378776,105170.0,105160.0,0.19019]
[1738259307933,1.14388776,105170.0,105160.0,0.19019]
[1738259308734,1.14388776,105170.0,105160.0,0.19719]
[1738259309242,0.1001,105170.0,105160.0,0.30154676]
[1738259309439,0.60180958,105180.0,105170.0,0.190176]
[1738259309738,0.60180958,105180.0,105170.0,0.29453276]
[1738259309940,0.60180958,105180.0,105170.0,0.190176]
[1738259311345,0.70616634,105180.0,105170.0,0.190176]
[1738259311551,0.70616634,105180.0,105170.0,0.192176]
[1738259312043,0.70616634,105180.0,105170.0,0.190176]
[1738259312242,0.70716634,105180.0,105170.0,0.190176]
[1738259312645,0.60280958,105180.0,105170.0,0.191176]
[1738259313347,0.60280958,105180.0,105170.0,0.190176]
[1738259316633,0.70716634,105180.0,105170.0,0.190176]
[1738259317937,0.70716634,105180.0,105160.0,0.097247]
[1738259317938,0.190176,105170.0,105160.0,0.19019]
[1738259318137,0.75273276,105170.0,105160.0,0.19019]
[1738259319143,0.648376,105170.0,105160.0,0.19119]
[1738259319745,0.648376,105170.0,105160.0,0.29554676]
[1738259320153,0.648376,105170.0,105160.0,0.29754676]
[1738259320851,0.649376,105170.0,105160.0,0.29554676]
[1738259321243,0.648376,105170.0,105160.0,0.29654676]
[1738259321443,0.648376,105170.0,105160.0,0.19319]
[1738259328859,0.76134699,105170.0,105160.0,0.19319]
[1738259332655,0.11297099,105170.0,105160.0,0.65834676]
[1738259332957,0.14135632,105180.0,105170.0,0.190176]
[1738259333155,0.14135632,105180.0,105170.0,0.75703276]
[1738259334363,0.14235632,105180.0,105170.0,0.75703276]
[1738259336466,0.00114258,105180.0,105170.0,1.65369435]
[1738259338762,0.00114258,105180.0,105170.0,1.66310762]
[1738259339662,0.00114258,105180.0,105170.0,1.69070762]
[1738259340561,0.00114258,105180.0,105170.0,1.66310762]
[1738259340961,0.00114258,105180.0,105170.0,1.69070762]
[1738259341367,0.00114258,105180.0,105170.0,1.19229053]
[1738259342959,0.36194258,105180.0,105170.0,0.84149053]
[1738259343359,0.36194258,105180.0,105170.0,0.81389053]
[1738259343666,0.55210058,105180.0,105170.0,0.70953377]
[1738259344266,0.55210058,105180.0,105170.0,0.59783377]
[1738259344564,0.65270058,105180.0,105170.0,0.59783377]
[1738259345363,0.65270058,105180.0,105170.0,0.70219053]
[1738259347658,0.65270058,105180.0,105170.0,0.47462224]
[1738259347867,0.65270058,105180.0,105170.0,0.30394603]
[1738259349568,0.75705734,105180.0,105170.0,0.190176]
[1738259349763,0.80885734,105180.0,105170.0,0.190176]
[1738259351858,0.70450058,105180.0,105170.0,0.190176]
[1738259352168,0.70450058,105180.0,105170.0,0.29453276]
[1738259353060,0.70450058,105180.0,105170.0,0.190176]
[1738259353462,0.80885734,105180.0,105170.0,0.190176]
[1738259354170,0.61869934,105180.0,105160.0,0.19001954]
[1738259354372,0.65533276,105170.0,105160.0,0.38021454]
[1738259355362,0.65533276,105170.0,105160.0,0.38121454]
[1738259355965,0.65533276,105170.0,105160.0,0.38321454]
[1738259356469,0.68293276,105170.0,105160.0,0.38321454]
[1738259356776,0.68293276,105170.0,105160.0,0.38221454]
[1738259357074,0.578576,105170.0,105160.0,0.38321454]
[1738259358374,0.550976,105170.0,105160.0,0.38321454]
[1738259360568,0.550976,105170.0,105160.0,0.21253833]
[1738259362968,0.65533276,105170.0,105160.0,0.21253833]
[1738259366582,0.550976,105170.0,105160.0,0.21253833]
[1738259367577,0.550976,105170.0,105160.0,0.31689509]
[1738259367876,0.63572093,105170.0,105160.0,0.31689509]
[1738259369175,0.63572093,105170.0,105160.0,0.21253833]
[1738259372569,0.74007769,105170.0,105160.0,0.21253833]
[1738259374278,0.63572093,105170.0,105160.0,0.21253833]
[1738259375764,0.63572093,105170.0,105160.0,0.38321454]
[1738259378675,0.63572093,105170.0,105160.0,0.4875713]
[1738259379475,0.63572093,105170.0,105160.0,0.71513959]
[1738259379883,0.63572093,105170.0,105160.0,0.61078283]
[1738259381187,0.74007769,105170.0,105160.0,0.61078283]
[1738259381978,0.63572093,105170.0,105160.0,0.61078283]
[1738259382982,0.63572093,105170.0,105160.0,0.44010662]
[1738259387483,0.63572093,105170.0,105160.0,0.54446338]
[1738259387884,0.63572093,105170.0,105160.0,0.44010662]
[1738259388685,0.44554493,105170.0,105160.0,0.44010662]
[1738259388887,0.44554493,105170.0,105160.0,0.54446338]
[1738259389988,0.44554493,105170.0,105160.0,0.44010662]
[1738259390501,0.74007869,105170.0,105160.0,0.44010662]
[1738259391187,0.63572193,105170.0,105160.0,0.44010662]
[1738259393401,0.63572193,105170.0,105160.0,0.54446338]
[1738259393702,0.08474493,105170.0,105160.0,0.54446338]
[1738259393890,0.08474493,105170.0,105160.0,0.93282338]
[1738259394193,0.08474493,105170.0,105160.0,0.94282338]
[1738259394393,0.00014258,105180.0,105170.0,0.190176]
[1738259394697,0.00014258,105180.0,105170.0,0.44003276]
[1738259394901,0.00014258,105180.0,105170.0,0.80083276]
[1738259395096,0.50201374,105190.0,105170.0,0.72501352]
[1738259395400,0.50201374,105190.0,105180.0,0.29451476]
[1738259396100,0.53025648,105190.0,105180.0,0.29451476]
[1738259396894,0.53025648,105190.0,105180.0,0.32207476]
[1738259397102,0.53125648,105190.0,105180.0,0.32207476]
[1738259397697,0.53325648,105190.0,105180.0,0.32207476]